[Event "Early-Titled-Tuesday-Blitz-January-16-2024"]
[Site "Chess.com"]
[Date "2024.01.16"]
[Round "1"]
[White "Sebastian"]
[Black "HiHaruka"]
[Result "0-1"]
[WhiteElo "2974"]
[BlackElo "2529"]
[TimeControl "180+1"]
[EndTime "8:09:09 PST"]
[Termination "HiHaruka won by checkmate"]

1. e4 {[%clk 0:03:00.9]} 1... e6 {[%clk 0:02:53]} 2. d4 {[%clk 0:03:00.6]} 2...
d5 {[%clk 0:02:53.3]} 3. Nc3 {[%clk 0:03:01.3]} 3... dxe4 {[%clk 0:02:53.5]} 4.
Nxe4 {[%clk 0:03:01.1]} 4... Bd7 {[%clk 0:02:53.8]} 5. Nf3 {[%clk 0:02:49.4]}
5... Bc6 {[%clk 0:02:52.9]} 6. Bd3 {[%clk 0:02:50.1]} 6... Nd7 {[%clk
0:02:52.8]} 7. O-O {[%clk 0:02:47.9]} 7... Ngf6 {[%clk 0:02:53.4]} 8. Ned2
{[%clk 0:02:47]} 8... Bxf3 {[%clk 0:02:50.5]} 9. Nxf3 {[%clk 0:02:46.4]} 9...
Be7 {[%clk 0:02:47.2]} 10. Qe2 {[%clk 0:02:46]} 10... O-O {[%clk 0:02:47]} 11.
b3 {[%clk 0:02:24.2]} 11... c6 {[%clk 0:02:44.9]} 12. Bb2 {[%clk 0:02:23.5]}
12... Qb6 {[%clk 0:02:32.4]} 13. Rad1 {[%clk 0:02:20]} 13... Rfd8 {[%clk
0:02:24.4]} 14. c4 {[%clk 0:02:17.9]} 14... Nf8 {[%clk 0:02:17.8]} 15. h4 {[%clk
0:02:07.9]} 15... Ng6 {[%clk 0:02:07]} 16. g3 {[%clk 0:02:06]} 16... Qa5 {[%clk
0:02:03]} 17. a3 {[%clk 0:01:01]} 17... Qb6 {[%clk 0:01:29.8]} 18. Bc2 {[%clk
0:00:59.8]} 18... Rd7 {[%clk 0:01:13]} 19. Ne5 {[%clk 0:00:57.8]} 19... Rdd8
{[%clk 0:01:05.9]} 20. Nxg6 {[%clk 0:00:35.9]} 20... hxg6 {[%clk 0:01:04.3]} 21.
Rfe1 {[%clk 0:00:36.5]} 21... Rd7 {[%clk 0:01:01.3]} 22. Rd3 {[%clk 0:00:28.9]}
22... Rad8 {[%clk 0:00:49.8]} 23. Red1 {[%clk 0:00:28.9]} 23... Qa5 {[%clk
0:00:25.6]} 24. Qe5 {[%clk 0:00:20.1]} 24... Qxe5 {[%clk 0:00:24.1]} 25. dxe5
{[%clk 0:00:19.9]} 25... Rxd3 {[%clk 0:00:24.7]} 26. Rxd3 {[%clk 0:00:20.2]}
26... Rxd3 {[%clk 0:00:24.6]} 27. Bxd3 {[%clk 0:00:17.4]} 27... Nd7 {[%clk
0:00:24.2]} 28. b4 {[%clk 0:00:15.9]} 28... Bd8 {[%clk 0:00:19.4]} 29. f4 {[%clk
0:00:15.3]} 29... Bc7 {[%clk 0:00:16.9]} 30. Kg2 {[%clk 0:00:15.2]} 30... Kf8
{[%clk 0:00:17.1]} 31. Kf3 {[%clk 0:00:15.6]} 31... Ke7 {[%clk 0:00:17]} 32. Bd4
{[%clk 0:00:14.1]} 32... Bb6 {[%clk 0:00:16.6]} 33. Bc3 {[%clk 0:00:12]} 33...
c5 {[%clk 0:00:14.9]} 34. b5 {[%clk 0:00:10.9]} 34... Bd8 {[%clk 0:00:12.2]} 35.
a4 {[%clk 0:00:10.9]} 35... b6 {[%clk 0:00:11.4]} 36. Be4 {[%clk 0:00:10.7]}
36... Nf8 {[%clk 0:00:09.4]} 37. Bd2 {[%clk 0:00:10.7]} 37... Kd7 {[%clk
0:00:09.7]} 38. Be3 {[%clk 0:00:10.6]} 38... f5 {[%clk 0:00:09.4]} 39. exf6
{[%clk 0:00:05.9]} 39... gxf6 {[%clk 0:00:09.3]} 40. a5 {[%clk 0:00:03.1]} 40...
f5 {[%clk 0:00:09.3]} 41. Bc6+ {[%clk 0:00:03.3]} 41... Kd6 {[%clk 0:00:08.3]}
42. a6 {[%clk 0:00:02.7]} 42... Bf6 {[%clk 0:00:08]} 43. Kg2 {[%clk 0:00:02.2]}
43... e5 {[%clk 0:00:06.8]} 44. fxe5+ {[%clk 0:00:02.1]} 44... Bxe5 {[%clk
0:00:07.7]} 45. Kf3 {[%clk 0:00:02.5]} 45... Ne6 {[%clk 0:00:08]} 46. Bd5 {[%clk
0:00:01.8]} 46... Nc7 {[%clk 0:00:07.6]} 47. Kg2 {[%clk 0:00:02.3]} 47... Nxd5
{[%clk 0:00:07.5]} 48. cxd5 {[%clk 0:00:03]} 48... Kxd5 {[%clk 0:00:08.4]} 49.
Kf3 {[%clk 0:00:03.6]} 49... c4 {[%clk 0:00:08.5]} 50. Ke2 {[%clk 0:00:04]}
50... Bc7 {[%clk 0:00:07.1]} 51. Kd2 {[%clk 0:00:03.9]} 51... Ke4 {[%clk
0:00:07.2]} 52. Bg1 {[%clk 0:00:03.4]} 52... Kd5 {[%clk 0:00:06.9]} 53. Kc3
{[%clk 0:00:03.6]} 53... Be5+ {[%clk 0:00:07.2]} 54. Kc2 {[%clk 0:00:03.9]}
54... Bd4 {[%clk 0:00:08.1]} 55. Bh2 {[%clk 0:00:04.4]} 55... Kc5 {[%clk
0:00:08]} 56. g4 {[%clk 0:00:03.5]} 56... fxg4 {[%clk 0:00:07.9]} 57. Bb8 {[%clk
0:00:04.2]} 57... Kxb5 {[%clk 0:00:07.6]} 58. Bxa7 {[%clk 0:00:04.5]} 58... Kxa6
{[%clk 0:00:08.2]} 59. Bb8 {[%clk 0:00:04.9]} 59... Kb5 {[%clk 0:00:08.4]} 60.
Bg3 {[%clk 0:00:05.6]} 60... Kc5 {[%clk 0:00:08.5]} 61. Kd2 {[%clk 0:00:06.3]}
61... b5 {[%clk 0:00:09]} 62. Kc2 {[%clk 0:00:05.8]} 62... b4 {[%clk 0:00:09.5]}
63. Kb1 {[%clk 0:00:06.7]} 63... b3 {[%clk 0:00:10.4]} 64. h5 {[%clk 0:00:07.6]}
64... gxh5 {[%clk 0:00:09.2]} 65. Be1 {[%clk 0:00:07.8]} 65... c3 {[%clk
0:00:09.5]} 66. Kc1 {[%clk 0:00:07.6]} 66... c2 {[%clk 0:00:09.2]} 67. Bd2
{[%clk 0:00:05.7]} 67... Kc4 {[%clk 0:00:07.6]} 68. Bc3 {[%clk 0:00:05.8]} 68...
Be3+ {[%clk 0:00:07.3]} 69. Bd2 {[%clk 0:00:05.5]} 69... Bxd2+ {[%clk
0:00:06.9]} 70. Kxd2 {[%clk 0:00:06.4]} 70... Kb4 {[%clk 0:00:07.8]} 71. Kc1
{[%clk 0:00:06.5]} 71... h4 {[%clk 0:00:08.7]} 72. Kb2 {[%clk 0:00:06.7]} 72...
h3 {[%clk 0:00:09.6]} 73. Kc1 {[%clk 0:00:06.9]} 73... h2 {[%clk 0:00:05.9]} 74.
Kb2 {[%clk 0:00:07.8]} 74... g3 {[%clk 0:00:05.7]} 75. Ka1 {[%clk 0:00:07.5]}
75... h1=Q+ {[%clk 0:00:05.8]} 76. Kb2 {[%clk 0:00:08.4]} 76... Qb1# {[%clk
0:00:06.3]} 0-1

[Event "Early-Titled-Tuesday-Blitz-January-16-2024"]
[Site "Chess.com"]
[Date "2024.01.16"]
[Round "1"]
[White "CristianS27"]
[Black "Pastore1978"]
[Result "1-0"]
[WhiteElo "2611"]
[BlackElo "2259"]
[TimeControl "180+1"]
[EndTime "8:09:10 PST"]
[Termination "CristianS27 won on time"]

1. e4 {[%clk 0:02:58.4]} 1... e6 {[%clk 0:02:59.6]} 2. d4 {[%clk 0:02:54]} 2...
d5 {[%clk 0:03:00.1]} 3. Nd2 {[%clk 0:02:53.8]} 3... c5 {[%clk 0:02:59.8]} 4.
Ngf3 {[%clk 0:02:53.6]} 4... cxd4 {[%clk 0:02:59.2]} 5. Nxd4 {[%clk 0:02:54.5]}
5... Nc6 {[%clk 0:02:59.6]} 6. Bb5 {[%clk 0:02:55.2]} 6... Bd7 {[%clk
0:02:59.3]} 7. Nxc6 {[%clk 0:02:55.4]} 7... Bxc6 {[%clk 0:02:59.9]} 8. Bxc6+
{[%clk 0:02:55.1]} 8... bxc6 {[%clk 0:03:00.8]} 9. O-O {[%clk 0:02:52]} 9... Nf6
{[%clk 0:02:59.2]} 10. Qe2 {[%clk 0:02:41.7]} 10... Be7 {[%clk 0:02:53.1]} 11.
c4 {[%clk 0:02:41.9]} 11... O-O {[%clk 0:02:49.7]} 12. b3 {[%clk 0:02:41.1]}
12... Nxe4 {[%clk 0:02:20.9]} 13. Nxe4 {[%clk 0:02:40.8]} 13... dxe4 {[%clk
0:02:21.8]} 14. Qxe4 {[%clk 0:02:40.7]} 14... Bf6 {[%clk 0:02:21.8]} 15. Rb1
{[%clk 0:02:39.9]} 15... c5 {[%clk 0:02:15.7]} 16. Be3 {[%clk 0:02:39.3]} 16...
Bd4 {[%clk 0:01:53.6]} 17. Rbd1 {[%clk 0:02:37.4]} 17... e5 {[%clk 0:01:53]} 18.
Bxd4 {[%clk 0:02:20.8]} 18... exd4 {[%clk 0:01:53.9]} 19. b4 {[%clk 0:02:14.2]}
19... Re8 {[%clk 0:01:41.5]} 20. Qd5 {[%clk 0:01:55.5]} 20... Qxd5 {[%clk
0:01:34.2]} 21. cxd5 {[%clk 0:01:56.4]} 21... Rad8 {[%clk 0:01:32.6]} 22. bxc5
{[%clk 0:01:42.9]} 22... Rxd5 {[%clk 0:01:32]} 23. Rfe1 {[%clk 0:01:24.3]} 23...
Rxe1+ {[%clk 0:01:24.2]} 24. Rxe1 {[%clk 0:01:25.2]} 24... Kf8 {[%clk
0:01:23.6]} 25. Rc1 {[%clk 0:01:22.4]} 25... d3 {[%clk 0:01:15.5]} 26. Kf1
{[%clk 0:01:19.6]} 26... d2 {[%clk 0:01:12.3]} 27. Rd1 {[%clk 0:01:19.9]} 27...
Rxc5 {[%clk 0:01:01.2]} 28. Rxd2 {[%clk 0:01:20.2]} 28... Ke7 {[%clk 0:00:59.7]}
29. Ke2 {[%clk 0:01:19.9]} 29... Ke6 {[%clk 0:00:57.2]} 30. Rb2 {[%clk
0:01:19.7]} 30... Ra5 {[%clk 0:00:51.7]} 31. h4 {[%clk 0:01:18.8]} 31... h5
{[%clk 0:00:50.9]} 32. g3 {[%clk 0:01:18.3]} 32... g6 {[%clk 0:00:50.8]} 33. Rc2
{[%clk 0:01:17.7]} 33... Ra3 {[%clk 0:00:50.3]} 34. Rb2 {[%clk 0:01:17.4]} 34...
Kf6 {[%clk 0:00:46.4]} 35. Kd2 {[%clk 0:01:07.5]} 35... Ke6 {[%clk 0:00:45.6]}
36. Kc2 {[%clk 0:01:07.5]} 36... Rf3 {[%clk 0:00:43.9]} 37. Kb1 {[%clk
0:01:05.9]} 37... Ra3 {[%clk 0:00:42.8]} 38. Re2+ {[%clk 0:01:00]} 38... Kf6
{[%clk 0:00:40.5]} 39. Kb2 {[%clk 0:01:00.9]} 39... Ra6 {[%clk 0:00:37.1]} 40.
a3 {[%clk 0:00:58.5]} 40... Rb6+ {[%clk 0:00:36.1]} 41. Kc3 {[%clk 0:00:58.8]}
41... a5 {[%clk 0:00:29]} 42. Kc4 {[%clk 0:00:55.5]} 42... a4 {[%clk 0:00:25.7]}
43. Re3 {[%clk 0:00:48.3]} 43... Rb2 {[%clk 0:00:23.9]} 44. Rf3+ {[%clk
0:00:45.2]} 44... Kg7 {[%clk 0:00:24]} 45. Re3 {[%clk 0:00:28.8]} 45... Kf6
{[%clk 0:00:14.4]} 46. Rf3+ {[%clk 0:00:28]} 46... Kg7 {[%clk 0:00:14.6]} 47.
Rd3 {[%clk 0:00:24.6]} 47... Kf6 {[%clk 0:00:14.3]} 48. Rd6+ {[%clk 0:00:22.8]}
48... Ke7 {[%clk 0:00:14.7]} 49. Ra6 {[%clk 0:00:23]} 49... Rxf2 {[%clk
0:00:14.1]} 50. Rxa4 {[%clk 0:00:22.8]} 50... Rf3 {[%clk 0:00:14.2]} 51. Ra7+
{[%clk 0:00:17.5]} 51... Ke6 {[%clk 0:00:13.4]} 52. a4 {[%clk 0:00:15.4]} 52...
Rxg3 {[%clk 0:00:13.6]} 53. a5 {[%clk 0:00:14.8]} 53... Rg4+ {[%clk 0:00:13.9]}
54. Kb5 {[%clk 0:00:14.1]} 54... Rxh4 {[%clk 0:00:13.9]} 55. a6 {[%clk 0:00:15]}
55... Rh1 {[%clk 0:00:13]} 56. Ra8 {[%clk 0:00:15.1]} 56... Rb1+ {[%clk
0:00:12.6]} 57. Kc6 {[%clk 0:00:15.2]} 57... Kf6 {[%clk 0:00:10.1]} 58. Rh8
{[%clk 0:00:08.2]} 58... Rc1+ {[%clk 0:00:08]} 59. Kb7 {[%clk 0:00:07.7]} 59...
Rb1+ {[%clk 0:00:08.4]} 60. Kc7 {[%clk 0:00:07.9]} 60... Rc1+ {[%clk 0:00:08.6]}
61. Kb7 {[%clk 0:00:08.5]} 61... Rb1+ {[%clk 0:00:07.3]} 62. Ka8 {[%clk
0:00:08.8]} 62... Kg5 {[%clk 0:00:05.4]} 63. a7 {[%clk 0:00:09.3]} 63... h4
{[%clk 0:00:04.8]} 64. Rb8 {[%clk 0:00:10.2]} 64... Ra1 {[%clk 0:00:04.2]} 65.
Kb7 {[%clk 0:00:10.8]} 65... Rb1+ {[%clk 0:00:03.5]} 66. Kc6 {[%clk 0:00:09.6]}
66... Ra1 {[%clk 0:00:04.4]} 67. a8=Q {[%clk 0:00:08.6]} 67... Rxa8 {[%clk
0:00:04.5]} 68. Rxa8 {[%clk 0:00:09.4]} 68... h3 {[%clk 0:00:03.9]} 69. Kd5
{[%clk 0:00:09]} 69... Kg4 {[%clk 0:00:03.2]} 70. Ke4 {[%clk 0:00:08.9]} 70...
Kg3 {[%clk 0:00:01.2]} 71. Ra3+ {[%clk 0:00:06.4]} 71... Kg2 {[%clk 0:00:01.3]}
72. Kf4 {[%clk 0:00:07]} 72... h2 {[%clk 0:00:01.6]} 73. Ra2+ {[%clk 0:00:07.6]}
73... Kg1 {[%clk 0:00:01.9]} 74. Kg3 {[%clk 0:00:07.6]} 1-0

[Event "Early-Titled-Tuesday-Blitz-January-16-2024"]
[Site "Chess.com"]
[Date "2024.01.16"]
[Round "1"]
[White "koncheto"]
[Black "LeoWin2012"]
[Result "1/2-1/2"]
[WhiteElo "2591"]
[BlackElo "2228"]
[TimeControl "180+1"]
[EndTime "8:09:27 PST"]
[Termination "Game drawn by repetition"]

1. e4 {[%clk 0:03:00.9]} 1... e5 {[%clk 0:02:58.3]} 2. Nf3 {[%clk 0:03:01.1]}
2... Nf6 {[%clk 0:02:56.9]} 3. Nxe5 {[%clk 0:03:01.3]} 3... d6 {[%clk
0:02:56.9]} 4. Nf3 {[%clk 0:03:00.2]} 4... Nxe4 {[%clk 0:02:57.4]} 5. d4 {[%clk
0:03:01.1]} 5... d5 {[%clk 0:02:52.6]} 6. Bd3 {[%clk 0:03:01.1]} 6... Bf5 {[%clk
0:02:52.9]} 7. O-O {[%clk 0:03:01.2]} 7... Bd6 {[%clk 0:02:53.2]} 8. Re1 {[%clk
0:03:01.1]} 8... O-O {[%clk 0:02:53.4]} 9. c4 {[%clk 0:03:01.8]} 9... c6 {[%clk
0:02:53.3]} 10. Nc3 {[%clk 0:03:02.4]} 10... Nxc3 {[%clk 0:02:49.6]} 11. bxc3
{[%clk 0:03:03.3]} 11... Bxd3 {[%clk 0:02:48.4]} 12. Qxd3 {[%clk 0:03:04.2]}
12... dxc4 {[%clk 0:02:44]} 13. Qxc4 {[%clk 0:03:05.1]} 13... Nd7 {[%clk
0:02:43.9]} 14. a4 {[%clk 0:02:53.2]} 14... Nb6 {[%clk 0:02:43]} 15. Qb3 {[%clk
0:02:51.4]} 15... Qc7 {[%clk 0:02:25.6]} 16. h3 {[%clk 0:02:43.4]} 16... Rae8
{[%clk 0:02:18.3]} 17. Bd2 {[%clk 0:02:37.2]} 17... c5 {[%clk 0:01:52.8]} 18. a5
{[%clk 0:02:29.2]} 18... Nd7 {[%clk 0:01:50.8]} 19. d5 {[%clk 0:02:17.4]} 19...
c4 {[%clk 0:01:28.5]} 20. Qa4 {[%clk 0:02:16.7]} 20... Ne5 {[%clk 0:01:17.8]}
21. Nxe5 {[%clk 0:02:07.8]} 21... Bxe5 {[%clk 0:01:18.7]} 22. f4 {[%clk
0:02:05.5]} 22... Bxf4 {[%clk 0:00:50.9]} 23. Rxe8 {[%clk 0:01:59.7]} 23... Bxd2
{[%clk 0:00:51]} 24. Ra2 {[%clk 0:01:32.2]} 24... Qc5+ {[%clk 0:00:40.7]} 25.
Kh1 {[%clk 0:01:19.6]} 25... Bxc3 {[%clk 0:00:38.7]} 26. Rae2 {[%clk 0:01:09.4]}
26... g6 {[%clk 0:00:21.9]} 27. Rxf8+ {[%clk 0:00:38.1]} 27... Kxf8 {[%clk
0:00:22.8]} 28. Qe8+ {[%clk 0:00:29.7]} 28... Kg7 {[%clk 0:00:22.2]} 29. Qd7
{[%clk 0:00:30.6]} 29... Bf6 {[%clk 0:00:16.3]} 30. Qxb7 {[%clk 0:00:24]} 30...
c3 {[%clk 0:00:16]} 31. Rc2 {[%clk 0:00:20.6]} 31... Qd4 {[%clk 0:00:13.7]} 32.
Qb1 {[%clk 0:00:14.9]} 32... Qxd5 {[%clk 0:00:14.1]} 33. Qa2 {[%clk 0:00:15]}
33... Qd1+ {[%clk 0:00:12.2]} 34. Kh2 {[%clk 0:00:15.3]} 34... Be5+ {[%clk
0:00:12.2]} 35. g3 {[%clk 0:00:15.6]} 35... Qf3 {[%clk 0:00:08.5]} 36. Rg2
{[%clk 0:00:15.2]} 36... Qd3 {[%clk 0:00:06.2]} 37. Qe2 {[%clk 0:00:13]} 37...
Bxg3+ {[%clk 0:00:05.5]} 38. Kh1 {[%clk 0:00:12.6]} 38... Qxe2 {[%clk
0:00:03.7]} 39. Rxe2 {[%clk 0:00:12.7]} 39... Bf4 {[%clk 0:00:04.5]} 40. Rc2
{[%clk 0:00:12.3]} 40... Bd2 {[%clk 0:00:05.2]} 41. Kg2 {[%clk 0:00:09.6]} 41...
Kf6 {[%clk 0:00:05.6]} 42. Kf3 {[%clk 0:00:10.1]} 42... Ke5 {[%clk 0:00:06.3]}
43. Ke2 {[%clk 0:00:09.4]} 43... Kd4 {[%clk 0:00:06.8]} 44. Ra2 {[%clk
0:00:09.5]} 44... Kc5 {[%clk 0:00:06.4]} 45. Kd3 {[%clk 0:00:09.4]} 45... f5
{[%clk 0:00:06.4]} 46. Ra4 {[%clk 0:00:08.7]} 46... f4 {[%clk 0:00:05.1]} 47.
Rc4+ {[%clk 0:00:08.7]} 47... Kb5 {[%clk 0:00:05.1]} 48. Rc7 {[%clk 0:00:09.1]}
48... a6 {[%clk 0:00:03.7]} 49. Rxh7 {[%clk 0:00:08.8]} 49... Kxa5 {[%clk
0:00:02.9]} 50. Rg7 {[%clk 0:00:08.6]} 50... f3 {[%clk 0:00:03.5]} 51. Rf7
{[%clk 0:00:09.1]} 51... Kb5 {[%clk 0:00:02.1]} 52. Rxf3 {[%clk 0:00:09.3]}
52... a5 {[%clk 0:00:02.8]} 53. Rg3 {[%clk 0:00:05.5]} 53... a4 {[%clk
0:00:02.7]} 54. Kc2 {[%clk 0:00:04.5]} 54... a3 {[%clk 0:00:02.3]} 55. Kb3
{[%clk 0:00:04.1]} 55... a2 {[%clk 0:00:02.1]} 56. Rg1 {[%clk 0:00:03.9]} 56...
Kc5 {[%clk 0:00:01.1]} 57. Ra1 {[%clk 0:00:03.4]} 57... Kd4 {[%clk 0:00:01.8]}
58. Rxa2 {[%clk 0:00:03.3]} 58... Ke3 {[%clk 0:00:02.1]} 59. Ra4 {[%clk
0:00:02.8]} 59... g5 {[%clk 0:00:02.2]} 60. Rg4 {[%clk 0:00:02.9]} 60... Kf3
{[%clk 0:00:02.6]} 61. Kc2 {[%clk 0:00:02.9]} 61... Kf2 {[%clk 0:00:03]} 62. h4
{[%clk 0:00:01.9]} 62... gxh4 {[%clk 0:00:02.9]} 63. Rxh4 {[%clk 0:00:02.4]}
63... Kf3 {[%clk 0:00:03.6]} 64. Rh1 {[%clk 0:00:01.8]} 64... Kg2 {[%clk
0:00:03.8]} 65. Rh8 {[%clk 0:00:02.7]} 65... Kf3 {[%clk 0:00:04.3]} 66. Rd8
{[%clk 0:00:03.3]} 66... Ke4 {[%clk 0:00:04.9]} 67. Rd7 {[%clk 0:00:04.2]} 67...
Ke5 {[%clk 0:00:05.2]} 68. Kd3 {[%clk 0:00:04.5]} 68... Ke6 {[%clk 0:00:05.7]}
69. Rc7 {[%clk 0:00:04.9]} 69... Kd6 {[%clk 0:00:06.2]} 70. Rc8 {[%clk 0:00:05]}
70... Kd7 {[%clk 0:00:06.4]} 71. Rc4 {[%clk 0:00:05.3]} 71... Kd6 {[%clk
0:00:06.9]} 72. Ke4 {[%clk 0:00:05.3]} 72... Ke6 {[%clk 0:00:06.9]} 73. Rc6+
{[%clk 0:00:05.4]} 73... Kd7 {[%clk 0:00:07.4]} 74. Kd5 {[%clk 0:00:06.3]} 74...
Be1 {[%clk 0:00:07.3]} 75. Ra6 {[%clk 0:00:04.2]} 75... Bd2 {[%clk 0:00:05.1]}
76. Ra7+ {[%clk 0:00:03.5]} 76... Ke8 {[%clk 0:00:05.4]} 77. Ke6 {[%clk
0:00:03]} 77... Kf8 {[%clk 0:00:06]} 78. Rc7 {[%clk 0:00:02.1]} 78... Be1 {[%clk
0:00:05.2]} 79. Rc6 {[%clk 0:00:01.6]} 79... Bd2 {[%clk 0:00:04.3]} 80. Kf6
{[%clk 0:00:02.1]} 80... Ke8 {[%clk 0:00:03.9]} 81. Ke6 {[%clk 0:00:02.1]} 81...
Kd8 {[%clk 0:00:04]} 82. Kd6 {[%clk 0:00:02.4]} 82... Bf4+ {[%clk 0:00:03.9]}
83. Ke6 {[%clk 0:00:02.5]} 83... Bd2 {[%clk 0:00:04.8]} 84. Kf5 {[%clk
0:00:02.9]} 84... Kd7 {[%clk 0:00:04.6]} 85. Rc4 {[%clk 0:00:03.3]} 85... Kd6
{[%clk 0:00:05.1]} 86. Ke4 {[%clk 0:00:04.2]} 86... Ke6 {[%clk 0:00:05.3]} 87.
Rc8 {[%clk 0:00:03.7]} 87... Kd7 {[%clk 0:00:05.4]} 88. Rc5 {[%clk 0:00:04.3]}
88... Kd6 {[%clk 0:00:05.9]} 89. Rc4 {[%clk 0:00:03.9]} 1/2-1/2

[Event "Early-Titled-Tuesday-Blitz-January-16-2024"]
[Site "Chess.com"]
[Date "2024.01.16"]
[Round "1"]
[White "InitiatingASC"]
[Black "ValentinDragnev"]
[Result "1/2-1/2"]
[WhiteElo "2422"]
[BlackElo "2764"]
[TimeControl "180+1"]
[EndTime "8:09:33 PST"]
[Termination "Game drawn by stalemate"]

1. d4 {[%clk 0:03:00.9]} 1... d5 {[%clk 0:02:59.6]} 2. c4 {[%clk 0:03:00.1]}
2... e6 {[%clk 0:03:00.1]} 3. Nc3 {[%clk 0:02:55.9]} 3... c5 {[%clk 0:03:00.5]}
4. cxd5 {[%clk 0:02:54.5]} 4... cxd4 {[%clk 0:03:00.9]} 5. Qxd4 {[%clk
0:02:52.6]} 5... Nc6 {[%clk 0:03:01.3]} 6. Qa4 {[%clk 0:02:51.3]} 6... exd5
{[%clk 0:03:00.3]} 7. Nf3 {[%clk 0:02:47.9]} 7... d4 {[%clk 0:02:53.6]} 8. Ne4
{[%clk 0:02:38]} 8... Bf5 {[%clk 0:02:49.3]} 9. Ng3 {[%clk 0:02:36.4]} 9... Bb4+
{[%clk 0:02:48.3]} 10. Bd2 {[%clk 0:02:35.2]} 10... Bxd2+ {[%clk 0:02:48.6]} 11.
Nxd2 {[%clk 0:02:34.3]} 11... Ne7 {[%clk 0:02:38]} 12. Nxf5 {[%clk 0:02:31.6]}
12... Nxf5 {[%clk 0:02:38.9]} 13. g3 {[%clk 0:02:31.7]} 13... O-O {[%clk
0:02:38.3]} 14. Bh3 {[%clk 0:02:31.2]} 14... Qg5 {[%clk 0:02:11.3]} 15. Nf3
{[%clk 0:02:19.9]} 15... Qh5 {[%clk 0:02:09.9]} 16. Bxf5 {[%clk 0:01:43.4]}
16... Qxf5 {[%clk 0:02:10.8]} 17. Rd1 {[%clk 0:01:43.4]} 17... Qe4 {[%clk
0:01:32.2]} 18. O-O {[%clk 0:01:12.4]} 18... Rad8 {[%clk 0:01:18.1]} 19. Rd2
{[%clk 0:01:04]} 19... Rd7 {[%clk 0:01:18.3]} 20. Rfd1 {[%clk 0:01:03.9]} 20...
Rfd8 {[%clk 0:01:18.2]} 21. Ne1 {[%clk 0:01:00.9]} 21... h5 {[%clk 0:01:12.1]}
22. Nd3 {[%clk 0:00:58.5]} 22... Rd5 {[%clk 0:00:55.5]} 23. Nf4 {[%clk
0:00:36.9]} 23... Rf5 {[%clk 0:00:46.2]} 24. Qb3 {[%clk 0:00:30.8]} 24... Ne5
{[%clk 0:00:38]} 25. f3 {[%clk 0:00:13.8]} 25... Qc6 {[%clk 0:00:35]} 26. Rxd4
{[%clk 0:00:13.1]} 26... Qc5 {[%clk 0:00:20.2]} 27. Qe3 {[%clk 0:00:10.8]} 27...
Rxd4 {[%clk 0:00:14.4]} 28. Qxd4 {[%clk 0:00:11]} 28... Qc2 {[%clk 0:00:11.8]}
29. Qd2 {[%clk 0:00:09.7]} 29... Qc5+ {[%clk 0:00:10.8]} 30. Qd4 {[%clk
0:00:09.5]} 30... Qc2 {[%clk 0:00:11.5]} 31. Kg2 {[%clk 0:00:09.4]} 31... Ng6
{[%clk 0:00:09.3]} 32. Rd2 {[%clk 0:00:08.2]} 32... Qc6 {[%clk 0:00:07.8]} 33.
Nxg6 {[%clk 0:00:07.9]} 33... fxg6 {[%clk 0:00:07.8]} 34. Qd8+ {[%clk
0:00:07.9]} 34... Kh7 {[%clk 0:00:08]} 35. Qd7 {[%clk 0:00:08]} 35... Qb6 {[%clk
0:00:07.4]} 36. Qd4 {[%clk 0:00:07.7]} 36... Qa6 {[%clk 0:00:07.7]} 37. a3
{[%clk 0:00:06.4]} 37... Rf6 {[%clk 0:00:08]} 38. Qd3 {[%clk 0:00:06.8]} 38...
Qb6 {[%clk 0:00:07.7]} 39. Qc3 {[%clk 0:00:07]} 39... Re6 {[%clk 0:00:07.3]} 40.
Qd3 {[%clk 0:00:07.2]} 40... Qc6 {[%clk 0:00:07.3]} 41. Qd5 {[%clk 0:00:07.4]}
41... Qe8 {[%clk 0:00:07.6]} 42. Qd3 {[%clk 0:00:07.3]} 42... Qe7 {[%clk
0:00:08]} 43. Rc2 {[%clk 0:00:07.8]} 43... a6 {[%clk 0:00:08.4]} 44. Kf2 {[%clk
0:00:08.3]} 44... b6 {[%clk 0:00:08.9]} 45. Rc4 {[%clk 0:00:08.3]} 45... a5
{[%clk 0:00:09.1]} 46. Rc2 {[%clk 0:00:08]} 46... Qf6 {[%clk 0:00:08.9]} 47. Rd2
{[%clk 0:00:08.2]} 47... Re5 {[%clk 0:00:09.1]} 48. Qd4 {[%clk 0:00:08.5]} 48...
Qe7 {[%clk 0:00:09.3]} 49. Qd3 {[%clk 0:00:08.2]} 49... Qc5+ {[%clk 0:00:09.3]}
50. Qd4 {[%clk 0:00:08.6]} 50... Qc7 {[%clk 0:00:10.2]} 51. Qd6 {[%clk
0:00:08.5]} 51... Qc5+ {[%clk 0:00:07.4]} 52. Qxc5 {[%clk 0:00:08.4]} 52... Rxc5
{[%clk 0:00:08.3]} 53. e4 {[%clk 0:00:08.8]} 53... g5 {[%clk 0:00:07.8]} 54. Ke3
{[%clk 0:00:09.1]} 54... Kg6 {[%clk 0:00:08.5]} 55. Kd4 {[%clk 0:00:08.8]} 55...
Kf6 {[%clk 0:00:09.2]} 56. b4 {[%clk 0:00:08.7]} 56... axb4 {[%clk 0:00:08.4]}
57. axb4 {[%clk 0:00:09.6]} 57... Rc1 {[%clk 0:00:09.1]} 58. Kd5 {[%clk
0:00:09]} 58... b5 {[%clk 0:00:07.5]} 59. e5+ {[%clk 0:00:06.9]} 59... Ke7
{[%clk 0:00:07.2]} 60. f4 {[%clk 0:00:06.8]} 60... gxf4 {[%clk 0:00:04.2]} 61.
gxf4 {[%clk 0:00:07.7]} 61... Rf1 {[%clk 0:00:04.9]} 62. Ke4 {[%clk 0:00:07.4]}
62... g6 {[%clk 0:00:03.8]} 63. Rd6 {[%clk 0:00:07]} 63... Re1+ {[%clk
0:00:04.2]} 64. Kf3 {[%clk 0:00:06.7]} 64... Rf1+ {[%clk 0:00:04.5]} 65. Kg3
{[%clk 0:00:07.1]} 65... Rg1+ {[%clk 0:00:04.5]} 66. Kf2 {[%clk 0:00:07.4]}
66... Rg4 {[%clk 0:00:04.6]} 67. Kf3 {[%clk 0:00:07.8]} 67... Rh4 {[%clk
0:00:04.7]} 68. Rxg6 {[%clk 0:00:06.9]} 68... Rxh2 {[%clk 0:00:04.8]} 69. Rb6
{[%clk 0:00:07.6]} 69... Rb2 {[%clk 0:00:03.1]} 70. Rxb5 {[%clk 0:00:07.6]}
70... h4 {[%clk 0:00:03.6]} 71. Kg4 {[%clk 0:00:08.1]} 71... Rf2 {[%clk
0:00:02.9]} 72. f5 {[%clk 0:00:07.8]} 72... h3 {[%clk 0:00:03.5]} 73. Rb7+
{[%clk 0:00:08]} 73... Kd8 {[%clk 0:00:03.5]} 74. Rh7 {[%clk 0:00:08.7]} 74...
h2 {[%clk 0:00:03.5]} 75. e6 {[%clk 0:00:08.8]} 75... Ke8 {[%clk 0:00:03.2]} 76.
Kg5 {[%clk 0:00:09.1]} 76... Kf8 {[%clk 0:00:02.7]} 77. Kf6 {[%clk 0:00:09.5]}
77... Kg8 {[%clk 0:00:03.6]} 78. Rh3 {[%clk 0:00:09.4]} 78... Rg2 {[%clk
0:00:02.3]} 79. e7 {[%clk 0:00:08.7]} 79... Re2 {[%clk 0:00:02.8]} 80. Rxh2
{[%clk 0:00:07.9]} 80... Re4 {[%clk 0:00:02.4]} 81. Rg2+ {[%clk 0:00:07.4]}
81... Kh7 {[%clk 0:00:03]} 82. Rg5 {[%clk 0:00:07]} 82... Re3 {[%clk 0:00:02.9]}
83. Kf7 {[%clk 0:00:07.5]} 83... Kh6 {[%clk 0:00:03.2]} 84. Rg6+ {[%clk
0:00:08]} 84... Kh5 {[%clk 0:00:03.7]} 85. e8=Q {[%clk 0:00:08.9]} 85... Rxe8
{[%clk 0:00:03.9]} 86. Kxe8 {[%clk 0:00:08.9]} 86... Kh4 {[%clk 0:00:04.8]} 87.
Kf7 {[%clk 0:00:09.7]} 87... Kh3 {[%clk 0:00:05.7]} 88. Kf6 {[%clk 0:00:10.5]}
88... Kh2 {[%clk 0:00:06.3]} 89. b5 {[%clk 0:00:11.4]} 89... Kh3 {[%clk
0:00:06.9]} 90. b6 {[%clk 0:00:12.3]} 90... Kh2 {[%clk 0:00:07.3]} 91. b7 {[%clk
0:00:13.2]} 91... Kh1 {[%clk 0:00:08.2]} 92. b8=Q {[%clk 0:00:14.1]} 1/2-1/2